[Event "*** Titled Tuesday Blitz"]
[Site "Chess.com"]
[Date "2019.11.05"]
[Round "4"]
[White "shnitez"]
[Black "Godzillator"]
[Result "1/2-1/2"]
[WhiteElo "2507"]
[BlackElo "2304"]
[TimeControl "180+2"]
[EndTime "13:53:01 PST"]
[Termination "Game drawn by agreement"]

1. e4 {[%clk 0:03:01.9]} 1... c6 {[%clk 0:03:01]} 2. Nc3 {[%clk 0:03:01.6]} 2...
d5 {[%clk 0:03:02.4]} 3. Nf3 {[%clk 0:03:02.9]} 3... Bg4 {[%clk 0:03:03.4]} 4.
h3 {[%clk 0:03:00.9]} 4... Bxf3 {[%clk 0:03:04.4]} 5. gxf3 {[%clk 0:03:02.8]}
5... Nf6 {[%clk 0:03:05.8]} 6. d4 {[%clk 0:03:02.5]} 6... e6 {[%clk 0:03:06.8]}
7. Qd3 {[%clk 0:02:59.2]} 7... Bb4 {[%clk 0:03:07.4]} 8. Bd2 {[%clk 0:02:59.7]}
8... Nbd7 {[%clk 0:03:04.4]} 9. Rg1 {[%clk 0:02:59.1]} 9... g6 {[%clk
0:03:04.7]} 10. a3 {[%clk 0:02:59.4]} 10... Be7 {[%clk 0:02:57.9]} 11. O-O-O
{[%clk 0:02:51.7]} 11... Qc7 {[%clk 0:02:57.3]} 12. Re1 {[%clk 0:02:27.3]} 12...
O-O-O {[%clk 0:02:56.5]} 13. exd5 {[%clk 0:02:19.8]} 13... Nxd5 {[%clk
0:02:54.3]} 14. Nxd5 {[%clk 0:02:14.3]} 14... cxd5 {[%clk 0:02:55.5]} 15. Kb1
{[%clk 0:02:14]} 15... Bd6 {[%clk 0:02:53.7]} 16. Rc1 {[%clk 0:02:11.9]} 16...
Kb8 {[%clk 0:02:48]} 17. c4 {[%clk 0:02:07]} 17... dxc4 {[%clk 0:02:48.7]} 18.
Rxc4 {[%clk 0:02:08.2]} 18... Qb6 {[%clk 0:02:48.7]} 19. Bg2 {[%clk 0:01:58]}
19... Rc8 {[%clk 0:02:48.8]} 20. Rgc1 {[%clk 0:01:56.2]} 20... Nf6 {[%clk
0:02:38.8]} 21. f4 {[%clk 0:01:43.9]} 21... Nd5 {[%clk 0:02:39.5]} 22. Ka2
{[%clk 0:01:26.4]} 22... Rc7 {[%clk 0:02:24]} 23. Bxd5 {[%clk 0:01:23.2]} 23...
exd5 {[%clk 0:02:24.4]} 24. Rxc7 {[%clk 0:01:24.3]} 24... Bxc7 {[%clk
0:02:25.7]} 25. f5 {[%clk 0:01:24.9]} 25... Rc8 {[%clk 0:02:23.7]} 26. fxg6
{[%clk 0:01:24]} 26... hxg6 {[%clk 0:02:24.3]} 27. Bb4 {[%clk 0:01:09.9]} 27...
Qe6 {[%clk 0:02:23.8]} 28. Re1 {[%clk 0:01:07.3]} 28... Qc6 {[%clk 0:02:18.1]}
29. Re7 {[%clk 0:01:04.4]} 29... f5 {[%clk 0:02:17.3]} 30. Qe2 {[%clk 0:01:02]}
30... Qc4+ {[%clk 0:02:12.1]} 31. Qxc4 {[%clk 0:01:01.9]} 31... dxc4 {[%clk
0:02:13.7]} 32. Rg7 {[%clk 0:00:57.4]} 32... Rh8 {[%clk 0:02:13.7]} 33. Rxg6
{[%clk 0:00:56.9]} 33... a6 {[%clk 0:02:11.3]} 34. Rf6 {[%clk 0:00:45.7]} 34...
Rxh3 {[%clk 0:02:11]} 35. Rxf5 {[%clk 0:00:45.7]} 35... Rd3 {[%clk 0:02:11.1]}
36. Bc5 {[%clk 0:00:42.6]} 36... b5 {[%clk 0:02:11.6]} 37. f4 {[%clk 0:00:38.7]}
37... Kb7 {[%clk 0:02:07.5]} 38. d5 {[%clk 0:00:36.5]} 38... a5 {[%clk
0:01:56.3]} 39. d6 {[%clk 0:00:35.8]} 39... Bb6 {[%clk 0:01:47.4]} 40. Rf7+
{[%clk 0:00:29.7]} 40... Kc6 {[%clk 0:01:48.3]} 41. Bxb6 {[%clk 0:00:30.4]}
41... Kxb6 {[%clk 0:01:49.5]} 42. d7 {[%clk 0:00:31.3]} 42... Kc7 {[%clk
0:01:50.1]} 43. Rf5 {[%clk 0:00:23.5]} 43... Kc6 {[%clk 0:01:50.8]} 44. a4
{[%clk 0:00:19]} 44... bxa4 {[%clk 0:01:37.4]} 45. Rxa5 {[%clk 0:00:18.7]} 45...
Rxd7 {[%clk 0:01:38]} 46. Rxa4 {[%clk 0:00:18.7]} 46... Kb5 {[%clk 0:01:38.3]}
47. Ra8 {[%clk 0:00:18.9]} 47... Rf7 {[%clk 0:01:38.6]} 48. Ka3 {[%clk
0:00:19.4]} 48... Rxf4 {[%clk 0:01:38.5]} 49. Rb8+ {[%clk 0:00:20.5]} 49... Kc5
{[%clk 0:01:39.6]} 50. Rc8+ {[%clk 0:00:20.7]} 50... Kb5 {[%clk 0:01:41]} 51.
Rb8+ {[%clk 0:00:21.4]} 51... Kc5 {[%clk 0:01:41.9]} 52. Rb7 {[%clk 0:00:18.1]}
52... Rf1 {[%clk 0:01:40.6]} 53. Rc7+ {[%clk 0:00:13.9]} 53... Kb5 {[%clk
0:01:41.6]} 54. Rb7+ {[%clk 0:00:12.1]} 54... Kc6 {[%clk 0:01:37.7]} 55. Rb8
{[%clk 0:00:10.8]} 55... Rf2 {[%clk 0:01:24.8]} 56. Rc8+ {[%clk 0:00:09]} 56...
Kb5 {[%clk 0:01:25.8]} 57. Rb8+ {[%clk 0:00:10]} 57... Ka5 {[%clk 0:01:27]} 58.
Ra8+ {[%clk 0:00:09.9]} 58... Kb5 {[%clk 0:01:27.5]} 59. Rb8+ {[%clk 0:00:11.8]}
59... Kc5 {[%clk 0:01:26]} 60. Rc8+ {[%clk 0:00:12.6]} 60... Kd4 {[%clk
0:01:27.3]} 61. Rd8+ {[%clk 0:00:12.4]} 61... Ke4 {[%clk 0:01:28.3]} 62. Kb4
{[%clk 0:00:13.3]} 62... Rxb2+ {[%clk 0:01:26.5]} 63. Kxc4 {[%clk 0:00:14.5]}
63... Rc2+ {[%clk 0:01:27.6]} 64. Kb3 {[%clk 0:00:15.6]} 64... Rc7 {[%clk
0:01:28.2]} 1/2-1/2

[Event "*** Titled Tuesday Blitz"]
[Site "Chess.com"]
[Date "2019.11.05"]
[Round "4"]
[White "Alextorngren"]
[Black "CarlssonLudvig"]
[Result "0-1"]
[WhiteElo "2205"]
[BlackElo "2488"]
[TimeControl "180+2"]
[EndTime "13:53:04 PST"]
[Termination "CarlssonLudvig won on time"]

1. Nf3 {[%clk 0:03:01.6]} 1... c5 {[%clk 0:02:46.5]} 2. b3 {[%clk 0:03:01.7]}
2... b6 {[%clk 0:02:44.7]} 3. g3 {[%clk 0:02:56.6]} 3... Bb7 {[%clk 0:02:42.5]}
4. Bg2 {[%clk 0:02:58.1]} 4... g5 {[%clk 0:02:38.7]} 5. Bb2 {[%clk 0:02:55]}
5... Nf6 {[%clk 0:02:38.9]} 6. Bxf6 {[%clk 0:02:21]} 6... exf6 {[%clk
0:02:39.6]} 7. d4 {[%clk 0:02:22.2]} 7... f5 {[%clk 0:02:24.5]} 8. O-O {[%clk
0:02:10.9]} 8... Qf6 {[%clk 0:02:18.6]} 9. c3 {[%clk 0:01:53.2]} 9... Nc6 {[%clk
0:01:54.8]} 10. e3 {[%clk 0:01:23.4]} 10... Bd6 {[%clk 0:01:39.6]} 11. Nbd2
{[%clk 0:01:20.4]} 11... h5 {[%clk 0:01:39.4]} 12. Nc4 {[%clk 0:01:13]} 12...
Bb8 {[%clk 0:00:58.9]} 13. d5 {[%clk 0:00:39.6]} 13... Ne5 {[%clk 0:00:58.1]}
14. Ncxe5 {[%clk 0:00:36.3]} 14... Bxe5 {[%clk 0:01:00]} 15. Nxe5 {[%clk
0:00:37.1]} 15... Qxe5 {[%clk 0:01:01.9]} 16. c4 {[%clk 0:00:39]} 16... h4
{[%clk 0:01:00.9]} 17. Qf3 {[%clk 0:00:35.7]} 17... O-O-O {[%clk 0:00:43.8]} 18.
Rfe1 {[%clk 0:00:27]} 18... Rh7 {[%clk 0:00:42.5]} 19. g4 {[%clk 0:00:23]} 19...
fxg4 {[%clk 0:00:39.8]} 20. Qxg4 {[%clk 0:00:24.3]} 20... f5 {[%clk 0:00:39.6]}
21. Qe2 {[%clk 0:00:17]} 21... Kb8 {[%clk 0:00:28.7]} 22. e4 {[%clk 0:00:14.7]}
22... f4 {[%clk 0:00:27.7]} 23. h3 {[%clk 0:00:14]} 23... d6 {[%clk 0:00:26]}
24. Bf3 {[%clk 0:00:13.7]} 24... Re7 {[%clk 0:00:26.3]} 25. Bg4 {[%clk
0:00:13.9]} 25... Rde8 {[%clk 0:00:27.6]} 26. f3 {[%clk 0:00:14.2]} 26... Kc7
{[%clk 0:00:22.3]} 27. Kg2 {[%clk 0:00:14.8]} 27... a5 {[%clk 0:00:20.4]} 28.
Rab1 {[%clk 0:00:15]} 28... Ba6 {[%clk 0:00:19.8]} 29. Rec1 {[%clk 0:00:13.9]}
29... Qd4 {[%clk 0:00:19.7]} 30. Qf2 {[%clk 0:00:15]} 30... Qxf2+ {[%clk
0:00:20.4]} 31. Kxf2 {[%clk 0:00:16.9]} 31... Re5 {[%clk 0:00:21.4]} 32. Ke2
{[%clk 0:00:18]} 32... Ra8 {[%clk 0:00:21.7]} 33. a4 {[%clk 0:00:17.4]} 33...
Kd8 {[%clk 0:00:22.5]} 34. Kd3 {[%clk 0:00:18.1]} 34... Ke7 {[%clk 0:00:24.1]}
35. Rg1 {[%clk 0:00:18.7]} 35... Kf6 {[%clk 0:00:26]} 36. Rg2 {[%clk 0:00:19.6]}
36... Rae8 {[%clk 0:00:27.3]} 37. Rbg1 {[%clk 0:00:19.9]} 37... R8e7 {[%clk
0:00:28.9]} 38. Bf5 {[%clk 0:00:19]} 38... Rg7 {[%clk 0:00:24.6]} 39. Rg4 {[%clk
0:00:14.9]} 39... Rxf5 {[%clk 0:00:22.9]} 40. exf5 {[%clk 0:00:15.9]} 40... Bc8
{[%clk 0:00:24.8]} 41. Re1 {[%clk 0:00:08.4]} 41... Bxf5+ {[%clk 0:00:25.9]} 42.
Re4 {[%clk 0:00:09.6]} 42... Re7 {[%clk 0:00:20.6]} 43. Rg1 {[%clk 0:00:06]}
43... Rxe4 {[%clk 0:00:15.8]} 44. fxe4 {[%clk 0:00:06.7]} 44... Bxh3 {[%clk
0:00:17.7]} 45. Ke2 {[%clk 0:00:01.9]} 45... Bd7 {[%clk 0:00:17.6]} 46. Kf3
{[%clk 0:00:02]} 46... h3 {[%clk 0:00:19.1]} 0-1

[Event "*** Titled Tuesday Blitz"]
[Site "Chess.com"]
[Date "2019.11.05"]
[Round "4"]
[White "WeAintSurePal"]
[Black "pheonixking2000"]
[Result "1-0"]
[WhiteElo "2466"]
[BlackElo "2656"]
[TimeControl "180+2"]
[EndTime "13:53:13 PST"]
[Termination "WeAintSurePal won by resignation"]

1. e4 {[%clk 0:03:01.9]} 1... d6 {[%clk 0:03:01.9]} 2. d4 {[%clk 0:03:02.6]}
2... Nf6 {[%clk 0:03:03.7]} 3. Nc3 {[%clk 0:03:00.2]} 3... Nbd7 {[%clk
0:03:05.2]} 4. f4 {[%clk 0:03:00.8]} 4... e5 {[%clk 0:03:05.9]} 5. Nf3 {[%clk
0:03:00.8]} 5... exd4 {[%clk 0:03:06]} 6. Nxd4 {[%clk 0:03:01.7]} 6... g6 {[%clk
0:03:05.3]} 7. Be3 {[%clk 0:02:58.5]} 7... Bg7 {[%clk 0:03:06.5]} 8. Bd3 {[%clk
0:02:55.6]} 8... O-O {[%clk 0:03:07.9]} 9. O-O {[%clk 0:02:55.9]} 9... Nc5
{[%clk 0:03:09.5]} 10. h3 {[%clk 0:02:55.1]} 10... Re8 {[%clk 0:03:09.4]} 11.
Qf3 {[%clk 0:02:55.8]} 11... Qe7 {[%clk 0:03:10.9]} 12. f5 {[%clk 0:02:40.6]}
12... Ncxe4 {[%clk 0:03:04]} 13. Nxe4 {[%clk 0:02:39.4]} 13... Nxe4 {[%clk
0:03:03.4]} 14. fxg6 {[%clk 0:02:40.1]} 14... fxg6 {[%clk 0:02:59.2]} 15. Rae1
{[%clk 0:02:29]} 15... d5 {[%clk 0:02:59.1]} 16. c3 {[%clk 0:02:27.2]} 16... c5
{[%clk 0:02:57.1]} 17. Nb3 {[%clk 0:02:06.8]} 17... c4 {[%clk 0:02:56.5]} 18.
Bc5 {[%clk 0:02:06.9]} 18... Qc7 {[%clk 0:02:51.1]} 19. Rxe4 {[%clk 0:01:56.8]}
19... dxe4 {[%clk 0:02:49.4]} 20. Bxc4+ {[%clk 0:01:42.3]} 20... Kh8 {[%clk
0:02:50]} 21. Qe3 {[%clk 0:01:41.7]} 21... b6 {[%clk 0:02:46.9]} 22. Rf7 {[%clk
0:01:41.3]} 22... Qc6 {[%clk 0:02:39.3]} 23. Rxg7 {[%clk 0:01:40.7]} 23... Kxg7
{[%clk 0:02:31.7]} 24. Bd4+ {[%clk 0:01:40.7]} 24... Kf8 {[%clk 0:02:30.9]} 25.
Qh6+ {[%clk 0:01:36.8]} 25... Ke7 {[%clk 0:02:31.6]} 26. Qg7+ {[%clk 0:01:38.1]}
26... Kd6 {[%clk 0:02:30.1]} 27. Qf6+ {[%clk 0:01:28.2]} 27... Be6 {[%clk
0:02:23.2]} 28. Be5+ {[%clk 0:01:27.5]} 28... Kd7 {[%clk 0:02:23.4]} 29. Be2
{[%clk 0:00:52]} 29... Bxb3 {[%clk 0:01:53.9]} 30. Bb5 {[%clk 0:00:51.1]} 30...
Be6 {[%clk 0:01:42.7]} 31. Bxc6+ {[%clk 0:00:49.9]} 31... Kxc6 {[%clk
0:01:43.9]} 32. Qg7 {[%clk 0:00:48.4]} 32... Rac8 {[%clk 0:01:35.4]} 33. Qxa7
{[%clk 0:00:48.1]} 33... e3 {[%clk 0:01:31.6]} 34. Bd4 {[%clk 0:00:48]} 34...
Bc4 {[%clk 0:01:14.1]} 35. Qxb6+ {[%clk 0:00:47.9]} 35... Kd5 {[%clk 0:01:15.2]}
36. Bxe3 {[%clk 0:00:47.8]} 36... Bxa2 {[%clk 0:01:15]} 37. b3 {[%clk
0:00:46.4]} 37... Bb1 {[%clk 0:01:03.2]} 38. c4+ {[%clk 0:00:41.8]} 38... Ke4
{[%clk 0:01:04.6]} 39. Qd4+ {[%clk 0:00:43]} 39... Kf5 {[%clk 0:01:05.6]} 40.
Qd5+ {[%clk 0:00:38.7]} 40... Kf6 {[%clk 0:01:06.7]} 41. Bd4+ {[%clk 0:00:38.9]}
41... Ke7 {[%clk 0:01:07.3]} 42. Qe5+ {[%clk 0:00:28]} 42... Kd7 {[%clk
0:01:07.1]} 43. Qd5+ {[%clk 0:00:29.2]} 43... Ke7 {[%clk 0:01:07.7]} 44. c5
{[%clk 0:00:30.2]} 44... Red8 {[%clk 0:00:36.9]} 45. Qe5+ {[%clk 0:00:30.2]}
45... Kf7 {[%clk 0:00:37.7]} 46. Qf6+ {[%clk 0:00:28.4]} 46... Ke8 {[%clk
0:00:38]} 47. c6 {[%clk 0:00:27.9]} 47... Bf5 {[%clk 0:00:12.6]} 48. Bc5 {[%clk
0:00:24.3]} 1-0

[Event "*** Titled Tuesday Blitz"]
[Site "Chess.com"]
[Date "2019.11.05"]
[Round "4"]
[White "xamax2000"]
[Black "coolthing"]
[Result "1/2-1/2"]
[WhiteElo "2570"]
[BlackElo "2364"]
[TimeControl "180+2"]
[EndTime "13:53:13 PST"]
[Termination "Game drawn by repetition"]

1. e4 {[%clk 0:03:01.9]} 1... Nf6 {[%clk 0:03:01.9]} 2. e5 {[%clk 0:03:02.4]}
2... Nd5 {[%clk 0:03:03.1]} 3. d4 {[%clk 0:03:04.3]} 3... d6 {[%clk 0:03:04.3]}
4. Nf3 {[%clk 0:03:06.2]} 4... g6 {[%clk 0:03:05.1]} 5. h3 {[%clk 0:02:50.4]}
5... Bg7 {[%clk 0:03:05.7]} 6. Bd3 {[%clk 0:02:50.2]} 6... O-O {[%clk 0:03:06]}
7. O-O {[%clk 0:02:50.8]} 7... c5 {[%clk 0:03:07.2]} 8. Be4 {[%clk 0:02:44.7]}
8... Nb6 {[%clk 0:03:00.5]} 9. dxc5 {[%clk 0:02:45.5]} 9... dxc5 {[%clk
0:03:00.6]} 10. Be3 {[%clk 0:02:46.3]} 10... Qc7 {[%clk 0:02:49.8]} 11. Nc3
{[%clk 0:02:45.5]} 11... Bd7 {[%clk 0:02:34.4]} 12. Bf4 {[%clk 0:02:43.8]} 12...
Rd8 {[%clk 0:02:24.5]} 13. Bg3 {[%clk 0:02:38.1]} 13... Be6 {[%clk 0:02:18.9]}
14. Qc1 {[%clk 0:02:36.8]} 14... Nc6 {[%clk 0:02:14.8]} 15. Re1 {[%clk
0:02:28.1]} 15... Nd4 {[%clk 0:02:13.7]} 16. Ng5 {[%clk 0:02:25.4]} 16... a6
{[%clk 0:01:51.3]} 17. Nxe6 {[%clk 0:02:25.8]} 17... Nxe6 {[%clk 0:01:52.8]} 18.
f4 {[%clk 0:02:22.7]} 18... Nd4 {[%clk 0:01:48.9]} 19. Ne2 {[%clk 0:02:22.2]}
19... e6 {[%clk 0:01:39.4]} 20. Bf2 {[%clk 0:02:17.7]} 20... Rd7 {[%clk
0:01:36.2]} 21. c3 {[%clk 0:02:14.1]} 21... Nxe2+ {[%clk 0:01:35.2]} 22. Rxe2
{[%clk 0:02:16]} 22... Rad8 {[%clk 0:01:35.8]} 23. Qe3 {[%clk 0:02:16.5]} 23...
Bf8 {[%clk 0:01:23.4]} 24. Qf3 {[%clk 0:02:16.9]} 24... Nc4 {[%clk 0:01:15.1]}
25. b3 {[%clk 0:02:12.3]} 25... Nd2 {[%clk 0:01:15.2]} 26. Qe3 {[%clk
0:02:13.8]} 26... Nxe4 {[%clk 0:01:11.5]} 27. Qxe4 {[%clk 0:02:15.7]} 27... Rd5
{[%clk 0:01:07.5]} 28. c4 {[%clk 0:02:13.2]} 28... R5d7 {[%clk 0:01:06.2]} 29.
g4 {[%clk 0:02:09.1]} 29... Bg7 {[%clk 0:00:58.9]} 30. Rae1 {[%clk 0:02:05.2]}
30... Rd3 {[%clk 0:00:55.7]} 31. Kg2 {[%clk 0:02:06.1]} 31... Rc3 {[%clk
0:00:41.5]} 32. Re3 {[%clk 0:02:01.9]} 32... Rxe3 {[%clk 0:00:29.9]} 33. Bxe3
{[%clk 0:02:03.8]} 33... b5 {[%clk 0:00:27.8]} 34. Kf3 {[%clk 0:02:04.4]} 34...
Qa5 {[%clk 0:00:24.2]} 35. Re2 {[%clk 0:02:04.2]} 35... b4 {[%clk 0:00:22.2]}
36. f5 {[%clk 0:02:02.2]} 36... Qc7 {[%clk 0:00:15.3]} 37. f6 {[%clk 0:02:01.2]}
37... Bf8 {[%clk 0:00:15.7]} 38. Rd2 {[%clk 0:02:02.4]} 38... Rxd2 {[%clk
0:00:15]} 39. Bxd2 {[%clk 0:02:04.3]} 39... Qd7 {[%clk 0:00:12.7]} 40. Ke2
{[%clk 0:02:05.6]} 40... Qd8 {[%clk 0:00:11.5]} 41. Be3 {[%clk 0:02:06]} 41...
Qa5 {[%clk 0:00:12]} 42. Qc2 {[%clk 0:02:06.4]} 42... Qd8 {[%clk 0:00:12.7]} 43.
g5 {[%clk 0:02:07]} 43... Qd7 {[%clk 0:00:11.5]} 44. Qe4 {[%clk 0:02:06.7]}
44... Qd8 {[%clk 0:00:11.7]} 45. Bd2 {[%clk 0:02:05.4]} 45... Qa5 {[%clk
0:00:12.5]} 46. a4 {[%clk 0:02:06.7]} 46... Qc7 {[%clk 0:00:06.2]} 47. Be3
{[%clk 0:02:07.8]} 47... Qd8 {[%clk 0:00:05.4]} 48. h4 {[%clk 0:02:09]} 48...
Qd7 {[%clk 0:00:06.3]} 49. Qa8 {[%clk 0:02:07.6]} 49... Qc7 {[%clk 0:00:07.1]}
50. Bf4 {[%clk 0:02:07.8]} 50... Qd7 {[%clk 0:00:06.2]} 51. Be3 {[%clk
0:02:01.7]} 51... Qc7 {[%clk 0:00:07.3]} 52. Qe4 {[%clk 0:02:03.3]} 52... Qd7
{[%clk 0:00:08.3]} 53. Bf4 {[%clk 0:01:44.2]} 53... Qd8 {[%clk 0:00:07.5]} 54.
Bg3 {[%clk 0:01:39.6]} 54... Qd7 {[%clk 0:00:08.5]} 55. Bf2 {[%clk 0:01:40.9]}
55... Qd8 {[%clk 0:00:07.1]} 56. Qc6 {[%clk 0:01:41.6]} 56... Qb8 {[%clk
0:00:07.4]} 57. Bg3 {[%clk 0:01:39.9]} 57... Qd8 {[%clk 0:00:08]} 58. Qe4 {[%clk
0:01:28.4]} 58... Qd7 {[%clk 0:00:08.7]} 59. Bf2 {[%clk 0:01:28.2]} 59... Qc7
{[%clk 0:00:07]} 60. Kf3 {[%clk 0:01:27.8]} 60... Qd7 {[%clk 0:00:07.1]} 61. Qa8
{[%clk 0:01:23.7]} 61... Qd1+ {[%clk 0:00:08.1]} 62. Kg2 {[%clk 0:01:22.9]}
62... Qxb3 {[%clk 0:00:10]} 63. Bxc5 {[%clk 0:01:22.3]} 63... Qc2+ {[%clk
0:00:09.7]} 64. Kg3 {[%clk 0:01:22.6]} 64... Qd3+ {[%clk 0:00:10.5]} 65. Kf2
{[%clk 0:01:19]} 65... Qd2+ {[%clk 0:00:11.2]} 66. Kf1 {[%clk 0:01:19.7]} 66...
Qd1+ {[%clk 0:00:12.3]} 67. Kf2 {[%clk 0:01:20.2]} 67... Qd2+ {[%clk 0:00:13.6]}
68. Kf1 {[%clk 0:01:21.3]} 68... Qd1+ {[%clk 0:00:14.9]} 69. Kf2 {[%clk
0:01:22.8]} 69... Qd2+ {[%clk 0:00:16.3]} 1/2-1/2

[Event "*** Titled Tuesday Blitz"]
[Site "Chess.com"]
[Date "2019.11.05"]
[Round "4"]
[White "Torrentec"]
[Black "FedaMaster"]
[Result "1-0"]
[WhiteElo "2371"]
[BlackElo "2622"]
[TimeControl "180+2"]
[EndTime "13:53:14 PST"]
[Termination "Torrentec won by resignation"]

1. e4 {[%clk 0:02:35.2]} 1... c5 {[%clk 0:02:52]} 2. Nf3 {[%clk 0:02:36.1]} 2...
d6 {[%clk 0:02:53]} 3. Bb5+ {[%clk 0:02:36.1]} 3... Bd7 {[%clk 0:02:48.5]} 4.
Bxd7+ {[%clk 0:02:36.9]} 4... Qxd7 {[%clk 0:02:49.3]} 5. O-O {[%clk 0:02:38.8]}
5... Nc6 {[%clk 0:02:50.1]} 6. Qe2 {[%clk 0:02:34.1]} 6... g6 {[%clk 0:02:47.4]}
7. c3 {[%clk 0:02:34]} 7... Bg7 {[%clk 0:02:48.7]} 8. Rd1 {[%clk 0:02:35.2]}
8... d5 {[%clk 0:02:49.4]} 9. e5 {[%clk 0:02:32.9]} 9... d4 {[%clk 0:02:42.4]}
10. cxd4 {[%clk 0:02:31.9]} 10... cxd4 {[%clk 0:02:38.5]} 11. d3 {[%clk
0:02:32.4]} 11... e6 {[%clk 0:02:35.6]} 12. Bf4 {[%clk 0:02:32]} 12... Nge7
{[%clk 0:02:31.8]} 13. Nbd2 {[%clk 0:02:29.2]} 13... Nd5 {[%clk 0:02:31.9]} 14.
Bg5 {[%clk 0:02:30.4]} 14... h6 {[%clk 0:02:32.6]} 15. Bh4 {[%clk 0:02:29.1]}
15... g5 {[%clk 0:02:22.5]} 16. Bg3 {[%clk 0:02:30]} 16... O-O-O {[%clk
0:02:06.8]} 17. Ne4 {[%clk 0:02:28.3]} 17... Kb8 {[%clk 0:02:00.7]} 18. Nc5
{[%clk 0:02:18.9]} 18... Qe7 {[%clk 0:01:59.9]} 19. Rac1 {[%clk 0:02:18.3]}
19... Rc8 {[%clk 0:01:54.8]} 20. Nd2 {[%clk 0:02:12]} 20... Nc3 {[%clk
0:01:30.2]} 21. Na6+ {[%clk 0:02:05.5]} 21... bxa6 {[%clk 0:01:27.6]} 22. bxc3
{[%clk 0:02:06.9]} 22... dxc3 {[%clk 0:01:24.7]} 23. Rxc3 {[%clk 0:02:06.6]}
23... Nd4 {[%clk 0:01:25.4]} 24. Rb1+ {[%clk 0:02:04.6]} 24... Nb5 {[%clk
0:01:10.2]} 25. Rcb3 {[%clk 0:01:51.8]} 25... Kc7 {[%clk 0:00:27.4]} 26. Qe4
{[%clk 0:01:47.8]} 26... Qc5 {[%clk 0:00:24.2]} 27. a4 {[%clk 0:01:44.1]} 27...
Nc3 {[%clk 0:00:15.1]} 28. Rb7+ {[%clk 0:01:27.7]} 28... Kd8 {[%clk 0:00:16]}
29. Qf3 {[%clk 0:01:28.8]} 29... Nxb1 {[%clk 0:00:12.7]} 30. Qxf7 {[%clk
0:01:07.2]} 30... Rc7 {[%clk 0:00:05.7]} 31. Rb8+ {[%clk 0:01:06]} 31... Rc8
{[%clk 0:00:07.2]} 32. Rb7 {[%clk 0:01:03.7]} 32... Rc7 {[%clk 0:00:07.4]} 33.
Rb8+ {[%clk 0:00:44.5]} 33... Rc8 {[%clk 0:00:08.6]} 34. Rxb1 {[%clk 0:00:40.7]}
34... Qe7 {[%clk 0:00:07.7]} 35. Qf3 {[%clk 0:00:33.3]} 35... Rf8 {[%clk
0:00:07.9]} 36. Qe4 {[%clk 0:00:31.5]} 36... Rf7 {[%clk 0:00:08.1]} 37. h4
{[%clk 0:00:31.8]} 37... Qd7 {[%clk 0:00:07.6]} 38. Nc4 {[%clk 0:00:29.2]} 38...
Bf8 {[%clk 0:00:03.2]} 39. hxg5 {[%clk 0:00:26.6]} 39... hxg5 {[%clk 0:00:05.1]}
40. Qg4 {[%clk 0:00:23.3]} 40... Rf5 {[%clk 0:00:05.1]} 41. Ne3 {[%clk
0:00:19.5]} 41... Qf7 {[%clk 0:00:04.4]} 42. Nxf5 {[%clk 0:00:20.2]} 42... Qxf5
{[%clk 0:00:06.3]} 43. Qxf5 {[%clk 0:00:21.3]} 43... exf5 {[%clk 0:00:08.2]} 44.
f4 {[%clk 0:00:21.1]} 44... Bc5+ {[%clk 0:00:09]} 45. Kf1 {[%clk 0:00:20]} 45...
g4 {[%clk 0:00:10]} 46. Bh4+ {[%clk 0:00:20.9]} 46... Kd7 {[%clk 0:00:11.1]} 47.
Rb7+ {[%clk 0:00:22]} 47... Kc6 {[%clk 0:00:12.1]} 48. Rf7 {[%clk 0:00:21.6]}
48... Rh8 {[%clk 0:00:13.6]} 49. g3 {[%clk 0:00:22.1]} 49... Rb8 {[%clk
0:00:14.1]} 50. Rxf5 {[%clk 0:00:21.7]} 50... Kd5 {[%clk 0:00:14.9]} 51. e6+
{[%clk 0:00:22.1]} 51... Kd4 {[%clk 0:00:16.5]} 52. Bf6+ {[%clk 0:00:22.9]}
52... Ke3 {[%clk 0:00:16.5]} 53. Rxc5 {[%clk 0:00:23.8]} 53... Rb1+ {[%clk
0:00:18.1]} 54. Kg2 {[%clk 0:00:25]} 54... Rb2+ {[%clk 0:00:19.7]} 55. Bxb2
{[%clk 0:00:26.2]} 55... a5 {[%clk 0:00:18]} 56. e7 {[%clk 0:00:26.8]} 56... a6
{[%clk 0:00:19.9]} 57. e8=Q+ {[%clk 0:00:27.9]} 1-0